bitfinex/quotes_BTCUSD_20250830
["timestamp","ask_amount","ask_price","bid_price","bid_amount"]
[1756540522753,1.13692421,108690.0,108680.0,0.21699949]
[1756540523152,0.79692421,108690.0,108680.0,0.21699949]
[1756540523332,1.13692421,108690.0,108680.0,0.21699949]
[1756540527980,1.13692421,108690.0,108680.0,0.21487949]
[1756540528687,1.13692421,108690.0,108680.0,0.21702949]
[1756540529307,0.61291465,108690.0,108680.0,0.21702949]
[1756540530444,0.02871973,108690.0,108680.0,0.21702949]
[1756540530651,0.45815465,108690.0,108680.0,0.21702949]
[1756540531410,0.02871973,108690.0,108680.0,0.21702949]
[1756540531635,0.45815465,108690.0,108680.0,0.21702949]
[1756540535246,0.02871973,108690.0,108680.0,0.21702949]
[1756540535475,0.25421642,108690.0,108680.0,0.21702949]
[1756540536079,0.25421642,108690.0,108680.0,0.37178949]
[1756540537282,0.29258968,108690.0,108680.0,0.37178949]
[1756540537671,0.03837326,108690.0,108680.0,0.4647695]
[1756540537876,0.42943492,108690.0,108680.0,0.4647695]
[1756540539024,0.58419492,108700.0,108690.0,0.18400956]
[1756540539224,0.58419492,108700.0,108690.0,0.18693956]
[1756540539225,0.58432624,108700.0,108690.0,0.18693956]
[1756540540071,1.01376116,108700.0,108690.0,0.18693956]
[1756540540877,1.01376116,108700.0,108690.0,0.21459856]
[1756540541076,1.0508115,108700.0,108690.0,0.21459856]
[1756540541318,1.0508115,108700.0,108690.0,0.21674856]
[1756540542290,1.0507715,108700.0,108690.0,0.21674856]
[1756540542690,0.8960515,108700.0,108690.0,0.21674856]
[1756540542902,1.0507715,108700.0,108690.0,0.21674856]
[1756540545151,0.8960515,108700.0,108690.0,0.21674856]
[1756540545372,1.0507715,108700.0,108690.0,0.21674856]
[1756540546345,0.8960515,108700.0,108690.0,0.21674856]
[1756540546551,1.0507715,108700.0,108690.0,0.21674856]
[1756540546753,1.0507715,108700.0,108690.0,0.37146856]
[1756540547218,1.0507715,108700.0,108690.0,0.36931856]
[1756540547591,0.8960515,108700.0,108690.0,0.21674856]
[1756540547751,1.0507715,108700.0,108690.0,0.21674856]
[1756540548847,1.32306046,108700.0,108690.0,0.027659]
[1756540549119,1.32306046,108700.0,108690.0,0.21166856]
[1756540549911,0.46419062,108700.0,108690.0,0.21166856]
[1756540550073,1.32306046,108700.0,108690.0,0.21166856]
[1756540550490,0.7096329,108700.0,108690.0,0.21483856]
[1756540550702,1.13906782,108700.0,108690.0,0.21483856]
[1756540550881,0.62133658,108700.0,108690.0,0.21483856]
[1756540551289,0.19190166,108700.0,108690.0,0.21483856]
[1756540551640,0.62133658,108700.0,108690.0,0.21483856]
[1756540553173,0.80532922,108700.0,108690.0,0.21483856]
[1756540554412,0.3758943,108700.0,108690.0,0.21483856]
[1756540554611,0.80532922,108700.0,108690.0,0.21483856]
[1756540556488,0.19190166,108700.0,108690.0,0.21483856]
[1756540556667,0.62133658,108700.0,108690.0,0.21483856]
[1756540556868,0.62133658,108700.0,108690.0,0.21679856]
[1756540559483,0.80532922,108700.0,108690.0,0.21679856]
[1756540559693,1.23476414,108700.0,108690.0,0.21679856]
[1756540560487,1.23476414,108700.0,108690.0,0.21483856]
[1756540562111,0.80532922,108700.0,108690.0,0.21483856]
[1756540562375,1.23476414,108700.0,108690.0,0.030829]
[1756540562615,1.32306046,108700.0,108690.0,0.027659]
[1756540563305,1.32306046,108700.0,108690.0,0.030829]
[1756540563507,1.32306046,108700.0,108690.0,0.027659]
[1756540563735,1.32306046,108700.0,108680.0,0.18719114]
[1756540563961,0.42943492,108690.0,108680.0,0.34187114]
[1756540564391,0.42943492,108690.0,108680.0,0.34383114]
[1756540564593,0.42943492,108690.0,108680.0,0.37149214]
[1756540566693,0.92128754,108700.0,108680.0,0.37149214]
[1756540566900,0.42943492,108690.0,108680.0,0.36832214]
[1756540567109,0.61344448,108690.0,108680.0,0.36832214]
[1756540567558,0.61344448,108690.0,108680.0,0.37149214]
[1756540567768,0.61344448,108690.0,108680.0,0.21681214]
[1756540567948,0.76812448,108690.0,108680.0,0.37149214]
[1756540569824,0.61344448,108690.0,108680.0,0.37149214]
[1756540570596,0.18400956,108690.0,108680.0,0.37149214]
[1756540570792,0.61344448,108690.0,108680.0,0.37149214]
[1756540571003,0.61344448,108690.0,108680.0,0.21681214]
[1756540571226,0.61344448,108690.0,108680.0,0.37149214]
[1756540572656,0.18400956,108690.0,108680.0,0.37149214]
[1756540572821,0.61344448,108690.0,108680.0,0.37149214]
[1756540574213,0.18400956,108690.0,108680.0,0.80092706]
[1756540574660,0.18400956,108690.0,108680.0,0.37149214]
[1756540574905,0.18400956,108690.0,108680.0,0.80092706]
[1756540575071,0.18400956,108690.0,108680.0,0.37149214]
[1756540575246,0.18400956,108690.0,108680.0,0.80092706]
[1756540577370,0.18400956,108690.0,108680.0,0.37149214]
[1756540578557,0.61344448,108690.0,108680.0,0.37149214]
[1756540578768,0.18400956,108690.0,108680.0,0.37149214]
[1756540578941,0.61344448,108690.0,108680.0,0.37149214]
[1756540579212,0.18400956,108690.0,108680.0,0.37149214]
[1756540580106,0.18400956,108690.0,108680.0,0.80092706]
[1756540589792,0.18300956,108690.0,108680.0,0.80092706]
[1756540590768,0.18300956,108690.0,108680.0,0.37149214]
[1756540591388,0.18300956,108690.0,108680.0,0.21681214]
[1756540591602,0.18300956,108690.0,108680.0,0.032791]
[1756540591801,0.61244448,108690.0,108680.0,0.187431]
[1756540592654,0.18300956,108690.0,108680.0,0.187431]
[1756540595602,0.18300956,108690.0,108680.0,0.37145749]
[1756540596100,0.18300956,108690.0,108680.0,0.187431]
[1756540596749,0.18300956,108690.0,108680.0,0.37145749]
[1756540601919,0.61244448,108690.0,108680.0,0.37145749]
[1756540602737,0.18300956,108690.0,108680.0,0.37145749]
[1756540603945,0.18300956,108690.0,108680.0,0.37141749]
[1756540605699,0.61244448,108690.0,108680.0,0.37141749]
[1756540605913,0.61244448,108690.0,108680.0,0.187391]
[1756540606884,0.18300956,108690.0,108680.0,0.37141749]
[1756540607399,0.18300956,108690.0,108680.0,0.032791]
[1756540607620,0.18300956,108690.0,108680.0,0.187391]
[1756540608864,0.18300956,108690.0,108680.0,0.37141749]
[1756540611696,0.5888363,108700.0,108690.0,0.18400956]
[1756540611906,1.07890554,108700.0,108690.0,0.00498]
[1756540612118,0.64947062,108700.0,108690.0,0.00498]
[1756540612339,0.99060922,108700.0,108690.0,0.00498]
[1756540612595,1.14516922,108700.0,108690.0,0.00498]
[1756540612797,0.3757343,108700.0,108690.0,0.00498]
[1756540613008,0.80516922,108700.0,108690.0,0.00498]
[1756540616614,0.3757343,108700.0,108690.0,0.00498]
[1756540616818,0.80516922,108700.0,108690.0,0.00498]
[1756540618582,0.3757343,108700.0,108690.0,0.00498]
[1756540618786,0.80516922,108700.0,108690.0,0.00498]
[1756540619026,0.3757343,108700.0,108690.0,0.00498]
[1756540619177,0.80516922,108700.0,108690.0,0.00498]
[1756540619382,0.84167059,108700.0,108690.0,0.00498]
[1756540620648,0.41223567,108700.0,108690.0,0.00498]
[1756540620934,0.80516922,108700.0,108690.0,0.00498]
[1756540624654,0.3757343,108700.0,108690.0,0.00498]
[1756540624856,0.80516922,108700.0,108690.0,0.00498]
[1756540626533,0.3757343,108700.0,108690.0,0.00498]
[1756540626866,0.80516922,108700.0,108690.0,0.00498]
[1756540629664,0.3757343,108700.0,108690.0,0.00498]
[1756540630028,0.80516922,108700.0,108690.0,0.00498]
[1756540630650,0.80516922,108700.0,108690.0,0.18898956]
[1756540631066,0.80516922,108700.0,108690.0,0.00498]
[1756540631244,0.80516922,108700.0,108690.0,0.032641]
[1756540632190,0.89346554,108700.0,108690.0,0.032641]
[1756540632835,0.89342554,108700.0,108690.0,0.032641]
[1756540633011,0.46399062,108700.0,108690.0,0.032641]
[1756540633217,0.89342554,108700.0,108690.0,0.032641]
[1756540636192,0.89342554,108700.0,108690.0,0.030671]
[1756540636401,1.32286046,108700.0,108680.0,0.34151191]
[1756540636602,0.58391492,108690.0,108680.0,0.21469291]
[1756540636793,0.15448,108690.0,108680.0,0.21469291]
[1756540637183,0.15448,108690.0,108680.0,0.21666291]
[1756540640687,0.74531735,108700.0,108680.0,0.21666291]
[1756540642163,0.74531735,108700.0,108680.0,0.64609783]
[1756540642934,0.78365889,108700.0,108680.0,0.64609783]
[1756540643138,0.78365889,108700.0,108680.0,0.21666291]
[1756540643386,0.78365889,108700.0,108680.0,0.37114291]
[1756540644579,0.62917889,108700.0,108680.0,0.37114291]
[1756540644815,0.78365889,108700.0,108680.0,0.37114291]
[1756540645244,0.37074053,108700.0,108690.0,0.00294]
[1756540645451,0.80017545,108700.0,108690.0,0.00294]
[1756540646056,0.64569545,108700.0,108690.0,0.00294]
[1756540646258,0.80017545,108700.0,108690.0,0.00294]
[1756540646711,0.64569545,108700.0,108690.0,0.00294]
[1756540646919,1.22957037,108700.0,108690.0,0.00294]
[1756540647275,0.80013545,108700.0,108690.0,0.00294]
[1756540647682,0.64569545,108700.0,108690.0,0.00294]
[1756540647972,0.80013545,108700.0,108690.0,0.00294]
[1756540651730,0.57531281,108700.0,108690.0,0.00294]
[1756540651981,0.75930545,108700.0,108690.0,0.00294]
[1756540652526,0.79666941,108700.0,108690.0,0.00294]
[1756540652909,0.79666941,108700.0,108690.0,0.00287961]
[1756540654054,1.22610433,108700.0,108690.0,0.00287961]
[1756540656176,1.31440065,108700.0,108690.0,0.00287961]
[1756540657998,1.22610433,108700.0,108690.0,0.00287961]
[1756540666855,1.22610433,108700.0,108690.0,0.00501961]
[1756540667740,1.07166433,108700.0,108690.0,0.00501961]
[1756540667941,1.22606433,108700.0,108690.0,0.18902917]
[1756540668758,0.80519152,108700.0,108690.0,0.18902917]
[1756540669724,0.80519152,108700.0,108690.0,0.00501961]
[1756540670168,0.80519152,108700.0,108690.0,0.03267961]
[1756540670665,0.65079152,108700.0,108690.0,0.03267961]
[1756540670802,1.23462644,108700.0,108690.0,0.03267961]
[1756540672755,0.80515152,108700.0,108690.0,0.03267961]
[1756540674687,0.80515152,108700.0,108690.0,0.21668917]
[1756540675109,0.80515152,108700.0,108690.0,0.03267961]
[1756540681560,0.3757166,108700.0,108690.0,0.03267961]
[1756540681922,0.80515152,108700.0,108690.0,0.03267961]
[1756540682123,0.80515152,108700.0,108690.0,0.21668917]
[1756540682730,0.3757166,108700.0,108690.0,0.21668917]
[1756540682952,0.80515152,108700.0,108690.0,0.21668917]
[1756540683422,0.3757166,108700.0,108690.0,0.21668917]
[1756540683629,0.80515152,108700.0,108690.0,0.21668917]
[1756540683829,0.3757166,108700.0,108690.0,0.21668917]
[1756540683953,0.80515152,108700.0,108690.0,0.21668917]
[1756540684636,0.3757166,108700.0,108690.0,0.21668917]
[1756540684843,0.80511152,108700.0,108690.0,0.21668917]
[1756540685422,0.3756766,108700.0,108690.0,0.21668917]
[1756540685624,0.80511152,108700.0,108690.0,0.21668917]
[1756540685828,0.3756766,108700.0,108690.0,0.21668917]
[1756540686377,0.62111888,108700.0,108690.0,0.21668917]
[1756540686531,0.58375492,108700.0,108690.0,0.21668917]
[1756540687740,0.15432,108700.0,108690.0,0.21668917]
[1756540688549,0.33831264,108700.0,108690.0,0.21668917]
[1756540688727,0.76774756,108700.0,108690.0,0.21668917]
[1756540690357,0.33831264,108700.0,108690.0,0.21668917]
[1756540690596,0.76774756,108700.0,108690.0,0.21668917]
[1756540691982,0.33831264,108700.0,108690.0,0.21668917]
[1756540692183,0.76774756,108700.0,108690.0,0.21668917]
[1756540695763,0.33831264,108700.0,108690.0,0.21668917]
[1756540696074,0.76774756,108700.0,108690.0,0.21668917]
[1756540702687,0.33831264,108700.0,108690.0,0.21668917]
[1756540702886,0.76774756,108700.0,108690.0,0.21668917]
[1756540704742,0.33831264,108700.0,108690.0,0.21668917]
[1756540704920,0.76774756,108700.0,108690.0,0.21668917]
[1756540706612,0.33831264,108700.0,108690.0,0.21668917]
[1756540706823,0.76774756,108700.0,108690.0,0.21668917]
[1756540710981,0.33831264,108700.0,108690.0,0.21668917]
[1756540711180,0.76774756,108700.0,108690.0,0.21668917]
[1756540712393,0.33831264,108700.0,108690.0,0.21668917]
[1756540713931,0.33803396,108700.0,108690.0,0.21668917]
[1756540720928,0.76746888,108700.0,108690.0,0.21668917]
[1756540722674,0.33803396,108700.0,108690.0,0.21668917]
[1756540723001,0.76746888,108700.0,108690.0,0.21668917]
[1756540724738,0.33803396,108700.0,108690.0,0.21668917]
[1756540724941,0.76746888,108700.0,108690.0,0.21668917]
[1756540726729,0.33803396,108700.0,108690.0,0.21668917]
[1756540730776,0.76746888,108700.0,108690.0,0.21668917]
[1756540730979,0.33803396,108700.0,108690.0,0.21668917]
[1756540731936,0.76746888,108700.0,108690.0,0.21668917]
[1756540732672,0.33803396,108700.0,108690.0,0.21668917]
[1756540732874,0.76746888,108700.0,108690.0,0.21668917]
[1756540733676,0.33803396,108700.0,108690.0,0.21668917]
[1756540736409,0.18399264,108700.0,108690.0,0.21668917]
[1756540740905,0.61342756,108700.0,108690.0,0.21668917]
[1756540741240,0.18399264,108700.0,108690.0,0.21668917]
[1756540742302,0.18399264,108700.0,108690.0,0.64612409]
[1756540742702,0.18399264,108700.0,108690.0,0.21668917]
[1756540746105,0.61342756,108700.0,108690.0,0.21668917]
[1756540746659,0.18399264,108700.0,108690.0,0.21668917]
[1756540746903,0.61342756,108700.0,108690.0,0.21668917]
[1756540748672,0.18399264,108700.0,108690.0,0.21668917]
[1756540748874,0.61342756,108700.0,108690.0,0.21668917]
[1756540749076,0.70172388,108700.0,108690.0,0.21668917]
[1756540750138,0.61342756,108700.0,108690.0,0.21668917]
[1756540751961,0.58363492,108700.0,108690.0,0.21668917]
[1756540752164,0.76762756,108700.0,108690.0,0.21668917]
[1756540755549,0.33819264,108700.0,108690.0,0.21668917]
[1756540755788,0.76762756,108700.0,108690.0,0.21668917]
[1756540759336,0.1542,108700.0,108690.0,0.21668917]
[1756540759499,0.58363492,108700.0,108690.0,0.21668917]
[1756540760057,0.76762756,108700.0,108690.0,0.21668917]
[1756540760273,0.76762756,108700.0,108690.0,0.37088917]
[1756540760671,0.1542,108700.0,108690.0,0.37088917]
[1756540760889,0.58363492,108700.0,108690.0,0.37088917]
[1756540761330,0.1542,108700.0,108690.0,0.37088917]
[1756540772472,0.1542,108700.0,108690.0,0.21668917]
[1756540772685,0.1542,108700.0,108690.0,0.37084917]
[1756540775092,0.41229946,108710.0,108690.0,0.37084917]
[1756540775310,1.18178192,108710.0,108700.0,0.00298]
[1756540778596,1.27007824,108710.0,108700.0,0.00298]
[1756540779516,1.20267824,108710.0,108700.0,0.00298]
[1756540780127,1.11438192,108710.0,108700.0,0.00298]
[1756540782873,1.11434192,108710.0,108700.0,0.00298]
[1756540786832,0.96022192,108710.0,108700.0,0.00494]
[1756540787104,1.11434192,108710.0,108700.0,0.00494]
[1756540787333,1.11428252,108710.0,108700.0,0.03204868]
[1756540787586,0.96016252,108710.0,108700.0,0.03204868]
[1756540787796,1.11428252,108710.0,108700.0,0.03204868]
[1756540788845,0.55913036,108710.0,108700.0,0.21604132]
[1756540789067,1.17254099,108710.0,108700.0,0.21604132]
[1756540790869,0.40310607,108710.0,108700.0,0.21604132]
[1756540791060,0.64856528,108710.0,108700.0,0.21604132]
[1756540791462,0.62090428,108710.0,108700.0,0.21604132]
[1756540792721,0.19146936,108710.0,108700.0,0.21604132]
[1756540792892,0.62090428,108710.0,108700.0,0.21604132]
[1756540794739,0.19146936,108710.0,108700.0,0.21604132]
[1756540794935,0.62090428,108710.0,108700.0,0.21604132]
[1756540796495,0.19146936,108710.0,108700.0,0.21604132]
[1756540796860,0.62090428,108710.0,108700.0,0.21604132]
[1756540797678,0.19146936,108710.0,108700.0,0.21604132]
[1756540797863,0.62090428,108710.0,108700.0,0.21604132]
[1756540800075,0.19146936,108710.0,108700.0,0.64547624]
[1756540800268,0.62090428,108710.0,108700.0,0.21604132]
[1756540800604,0.80487999,108710.0,108700.0,0.21604132]
[1756540800912,0.37544507,108710.0,108700.0,0.21604132]
[1756540801130,0.80487999,108710.0,108700.0,0.21604132]
[1756540801352,0.80487999,108710.0,108700.0,0.03204868]
[1756540801551,0.37544507,108710.0,108700.0,0.03204868]
[1756540801699,0.37544507,108710.0,108700.0,0.21604132]
[1756540801902,0.37544507,108710.0,108700.0,0.03204868]
[1756540802110,0.37544507,108710.0,108700.0,0.03211868]
[1756540802323,0.80487999,108710.0,108700.0,0.03211868]
[1756540803216,0.37544507,108710.0,108700.0,0.03211868]
[1756540803388,0.80487999,108710.0,108700.0,0.03211868]
[1756540804693,0.37544507,108710.0,108700.0,0.03211868]
[1756540805282,0.80487999,108710.0,108700.0,0.03211868]
[1756540806167,0.37544507,108710.0,108700.0,0.03211868]
[1756540806343,0.80487999,108710.0,108700.0,0.03211868]
[1756540807388,0.37544507,108710.0,108700.0,0.03211868]
[1756540812778,0.37544507,108710.0,108700.0,0.03008868]
[1756540815774,0.80487999,108710.0,108700.0,0.03008868]
[1756540815981,0.86328308,108710.0,108700.0,0.02766]
[1756540816123,0.43384816,108710.0,108700.0,0.02766]
[1756540816326,0.86328308,108710.0,108700.0,0.03091]
[1756540818192,0.89094108,108710.0,108700.0,0.03091]
[1756540818930,0.83253799,108710.0,108700.0,0.03091]
[1756540819142,1.17253799,108710.0,108700.0,0.02766]
[1756540819357,0.18400518,108700.0,108680.0,0.78006815]
[1756540819572,0.6134401,108700.0,108680.0,0.77697815]
[1756540819795,0.6134401,108700.0,108690.0,0.03075]
[1756540820051,0.6034401,108700.0,108690.0,0.0327]
[1756540821111,0.37083709,108700.0,108690.0,0.0327]
[1756540821293,0.55484227,108700.0,108690.0,0.0327]
[1756540821717,0.18400518,108700.0,108690.0,0.0327]
[1756540821917,0.6134401,108700.0,108690.0,0.0327]
[1756540827780,0.7676801,108700.0,108690.0,0.0327]
[1756540828441,0.70173642,108700.0,108690.0,0.03075]
[1756540828842,0.4265415,108700.0,108690.0,0.03075]
[1756540829060,0.88363742,108700.0,108690.0,0.03075]
[1756540829662,0.4542025,108700.0,108690.0,0.03075]
[1756540829872,0.88363742,108700.0,108690.0,0.03075]
[1756540830093,0.88363742,108700.0,108690.0,0.0327]
[1756540830661,0.88359742,108700.0,108690.0,0.0327]
[1756540831819,0.6411011,108700.0,108690.0,0.0327]
[1756540832019,0.36586618,108700.0,108690.0,0.0327]
[1756540832224,0.7953011,108700.0,108690.0,0.0327]
[1756540832848,0.7952611,108700.0,108690.0,0.0327]
[1756540834397,0.21166618,108700.0,108690.0,0.0327]
[1756540834736,0.7962611,108700.0,108690.0,0.0327]
[1756540837026,0.83862202,108700.0,108690.0,0.0327]
[1756540837628,0.7962611,108700.0,108690.0,0.0327]
[1756540837983,0.7686001,108700.0,108690.0,0.00504]
[1756540839614,0.7685601,108700.0,108690.0,0.00504]
[1756540839817,0.6144401,108700.0,108690.0,0.00504]
[1756540840020,0.7685601,108700.0,108690.0,0.00504]
[1756540846578,0.33912518,108700.0,108690.0,0.00504]
[1756540846933,0.6144401,108700.0,108690.0,0.00504]
[1756540847153,0.7685601,108700.0,108690.0,0.00504]
[1756540849186,0.85685642,108700.0,108690.0,0.00504]
[1756540855605,0.7685601,108700.0,108690.0,0.00504]
[1756540857018,0.33912518,108700.0,108690.0,0.00504]
[1756540857457,0.7685601,108700.0,108690.0,0.00504]
[1756540858095,0.33912518,108700.0,108690.0,0.00504]
[1756540858607,0.7685601,108700.0,108690.0,0.00504]
[1756540860457,0.33912518,108700.0,108690.0,0.43447492]
[1756540860663,0.33912518,108700.0,108690.0,0.61848448]
[1756540860870,0.33912518,108700.0,108690.0,0.00504]
[1756540861766,0.18500518,108700.0,108690.0,0.00504]
[1756540862058,0.33912518,108700.0,108690.0,0.19134967]
[1756540862279,0.33912518,108700.0,108690.0,0.18904956]
[1756540862937,0.33912518,108700.0,108690.0,0.61848448]
[1756540864513,0.33912518,108700.0,108690.0,0.80022348]
[1756540864514,0.18500518,108700.0,108690.0,0.80022348]
[1756540864953,0.18500518,108700.0,108690.0,0.64614348]
[1756540865141,0.18500518,108700.0,108690.0,0.80022348]
[1756540866778,0.18500518,108700.0,108690.0,0.64614348]
[1756540866979,0.18500518,108700.0,108690.0,0.80022348]
[1756540867422,0.17916618,108700.0,108690.0,0.80022348]
[1756540868110,0.17916618,108700.0,108690.0,0.37078856]
[1756540871465,0.17185231,108700.0,108690.0,0.37078856]
[1756540872113,0.60128723,108700.0,108690.0,0.186779]
[1756540872743,0.60128723,108700.0,108690.0,0.032699]
[1756540872950,0.60128723,108700.0,108690.0,0.186779]
[1756540873748,0.17185231,108700.0,108690.0,0.186779]
[1756540873954,0.60128723,108700.0,108690.0,0.186779]
[1756540879173,0.17185231,108700.0,108690.0,0.186779]
[1756540879371,0.60128723,108700.0,108690.0,0.186779]
[1756540879778,0.75536723,108700.0,108690.0,0.186779]
[1756540880631,0.32593231,108700.0,108690.0,0.186779]
[1756540880966,0.75536723,108700.0,108690.0,0.186779]
[1756540882399,0.32493231,108700.0,108690.0,0.186779]
[1756540882595,0.75436723,108700.0,108690.0,0.186779]
[1756540883389,0.75636723,108700.0,108690.0,0.186779]
[1756540883599,0.75536723,108700.0,108690.0,0.186779]
[1756540883766,0.75436723,108700.0,108690.0,0.186779]
[1756540884068,0.75636723,108700.0,108690.0,0.186779]
[1756540884678,0.75536723,108700.0,108690.0,0.186779]
[1756540884888,0.17185231,108700.0,108690.0,0.186779]
[1756540885120,0.75536723,108700.0,108690.0,0.186779]
[1756540885327,0.17185231,108700.0,108690.0,0.186779]
[1756540885921,0.17085231,108700.0,108690.0,0.186779]
[1756540886266,0.60028723,108700.0,108690.0,0.186779]
[1756540889578,0.60028723,108700.0,108690.0,0.15912]
[1756540891603,0.17085231,108700.0,108690.0,0.15912]
[1756540891833,0.60028723,108700.0,108690.0,0.15912]
[1756540896162,0.17085231,108700.0,108690.0,0.77486459]
[1756540896393,0.17085231,108700.0,108690.0,0.34312956]
[1756540896524,0.17085231,108700.0,108690.0,0.80022348]
[1756540899134,0.17085231,108700.0,108690.0,0.37078856]
[1756540899340,0.17085231,108700.0,108690.0,0.80022348]
[1756540901822,0.17085231,108700.0,108690.0,0.37078856]
[1756540903148,0.59818485,108710.0,108690.0,0.80022348]
[1756540903357,1.19893361,108710.0,108700.0,0.00315]
[1756540903560,1.19893361,108710.0,108700.0,0.00513]
[1756540904713,1.19993361,108710.0,108700.0,0.00513]
[1756540906026,1.20093361,108710.0,108700.0,0.00513]
[1756540906402,1.19993361,108710.0,108700.0,0.00513]
[1756540906955,1.20093262,108710.0,108700.0,0.00513]
[1756540907665,0.7714977,108710.0,108700.0,0.00513]
[1756540907860,1.20093262,108710.0,108700.0,0.00513]
[1756540908260,0.6174577,108710.0,108700.0,0.00513]
[1756540908419,1.19173384,108710.0,108700.0,0.00513]
[1756540909197,0.60825892,108710.0,108700.0,0.00513]
[1756540909347,1.19173384,108710.0,108700.0,0.00513]
[1756540909551,0.9462418,108710.0,108700.0,0.00513]
[1756540909980,1.13021751,108710.0,108700.0,0.00513]
[1756540912622,1.15486066,108710.0,108700.0,0.00513]
[1756540913018,1.15686066,108710.0,108700.0,0.00513]
[1756540914443,1.15586066,108710.0,108700.0,0.00513]
[1756540917438,1.13858781,108710.0,108700.0,0.00513]
[1756540917642,1.15586012,108710.0,108700.0,0.00513]
[1756540917845,1.15586012,108710.0,108700.0,0.00315]
[1756540920376,0.5447242,108710.0,108700.0,0.0075799]
[1756540920529,1.12815912,108710.0,108700.0,0.0075799]
[1756540920734,1.12815912,108710.0,108700.0,0.0352369]
[1756540923539,1.12816087,108710.0,108700.0,0.0352369]
[1756540924376,0.69872595,108710.0,108700.0,0.0352369]
[1756540924589,1.12816087,108710.0,108700.0,0.0352369]
[1756540925265,0.54472595,108710.0,108700.0,0.0352369]
[1756540925467,1.12816087,108710.0,108700.0,0.0352369]
[1756540926924,1.1281621,108710.0,108700.0,0.0352369]
[1756540930393,1.1281621,108710.0,108700.0,0.0331069]
[1756540931033,0.69872718,108710.0,108700.0,0.0331069]
[1756540931235,1.1281621,108710.0,108700.0,0.0331069]
[1756540931985,0.69872718,108710.0,108700.0,0.0331069]
[1756540932136,1.1281621,108710.0,108700.0,0.0331069]
[1756540932958,1.1281621,108710.0,108700.0,0.0352369]
[1756540937569,1.11088681,108710.0,108700.0,0.0352369]
[1756540937749,1.1281626,108710.0,108700.0,0.0352369]
[1756540942435,1.21645892,108710.0,108700.0,0.0331069]
[1756540942644,1.21645892,108710.0,108700.0,0.030807]
[1756540943367,1.1281626,108710.0,108700.0,0.030807]
[1756540943824,1.1271626,108710.0,108700.0,0.030807]
[1756540944125,1.1281626,108710.0,108700.0,0.030807]
[1756540944886,1.1291626,108710.0,108700.0,0.030807]
[1756540945351,1.1281626,108710.0,108700.0,0.030807]
[1756540945712,1.1291626,108710.0,108700.0,0.030807]
[1756540946282,1.15545142,108710.0,108700.0,0.027657]
[1756540946526,0.18399264,108700.0,108690.0,0.0031]
[1756540946742,0.76738756,108700.0,108690.0,0.030757]
[1756540946880,0.76738756,108700.0,108690.0,0.032917]
[1756540952242,0.76738756,108700.0,108690.0,0.030757]
[1756540952869,0.26799447,108700.0,108690.0,0.027657]
[1756540953076,0.76738756,108700.0,108690.0,0.027657]
[1756540953487,0.76738756,108700.0,108690.0,0.030757]
[1756540954741,0.76938756,108700.0,108690.0,0.030757]
[1756540955058,0.76838756,108700.0,108690.0,0.030757]
[1756540955410,0.76938756,108700.0,108690.0,0.030757]
[1756540955568,0.33995264,108700.0,108690.0,0.030757]
[1756540955766,0.76938756,108700.0,108690.0,0.030757]
[1756540956563,0.76938756,108700.0,108690.0,0.032917]
[1756540958913,0.61542756,108700.0,108690.0,0.032917]
[1756540959109,0.34003264,108700.0,108690.0,0.032917]
[1756540959326,0.76946756,108700.0,108690.0,0.032917]
[1756540959527,0.61542756,108700.0,108690.0,0.032917]
[1756540959802,0.34003264,108700.0,108690.0,0.032917]
[1756540960102,0.76946756,108700.0,108690.0,0.032917]
[1756540961203,0.61542756,108700.0,108690.0,0.032917]
[1756540961404,0.76950756,108700.0,108690.0,0.032917]
[1756540966356,0.76950756,108700.0,108690.0,0.030757]
[1756540966522,0.34007264,108700.0,108690.0,0.030757]
[1756540966984,0.76950756,108700.0,108690.0,0.030757]
[1756540969612,0.76950756,108700.0,108690.0,0.032917]
[1756540976141,0.18599264,108700.0,108690.0,0.032917]
[1756540976343,0.76938756,108700.0,108690.0,0.032917]
[1756540980913,0.76938756,108700.0,108690.0,0.030757]
[1756540980914,0.85768388,108700.0,108690.0,0.030757]
[1756540981996,0.42824896,108700.0,108690.0,0.032877]
[1756540982216,0.76938756,108700.0,108690.0,0.032877]
[1756540984950,0.18599264,108700.0,108690.0,0.032877]
[1756540985159,0.76974756,108700.0,108690.0,0.032877]
[1756540986732,0.34031264,108700.0,108690.0,0.032877]
[1756540986936,0.76974756,108700.0,108690.0,0.032877]
[1756540990738,0.18599264,108700.0,108690.0,0.032877]
[1756540990921,0.76974756,108700.0,108690.0,0.032877]
[1756540991115,0.18599264,108700.0,108690.0,0.032877]
[1756540991309,0.61542756,108700.0,108690.0,0.032877]
[1756540991566,0.76970756,108700.0,108690.0,0.032877]
[1756540994696,0.34027264,108700.0,108690.0,0.032877]
[1756540994883,0.76970756,108700.0,108690.0,0.032877]
[1756540997821,0.85800388,108700.0,108690.0,0.030757]
[1756540998002,0.85800388,108700.0,108690.0,0.032877]
[1756541000063,0.76970756,108700.0,108690.0,0.032877]
[1756541002819,0.76970756,108700.0,108690.0,0.030757]
[1756541003383,0.76970756,108700.0,108690.0,0.032787]
[1756541004788,0.34027264,108700.0,108690.0,0.032787]
[1756541004940,0.76970756,108700.0,108690.0,0.032787]
[1756541005529,0.85800388,108700.0,108690.0,0.032787]
[1756541006466,0.42856896,108700.0,108690.0,0.032787]
[1756541006675,0.85800388,108700.0,108690.0,0.032787]
[1756541007019,0.76970756,108700.0,108690.0,0.032787]
[1756541010664,0.34027264,108700.0,108690.0,0.032787]
[1756541011011,0.76970756,108700.0,108690.0,0.032787]
[1756541011215,0.34027264,108700.0,108690.0,0.032787]
[1756541011420,0.76970756,108700.0,108690.0,0.032787]
[1756541018647,0.7892216,108700.0,108690.0,0.032787]
[1756541018992,1.21865652,108700.0,108690.0,0.032787]
[1756541025391,1.23593455,108700.0,108690.0,0.032787]
[1756541026506,1.23593455,108700.0,108690.0,0.030757]
[1756541027732,1.23493455,108700.0,108690.0,0.030757]
[1756541027895,1.23593455,108700.0,108690.0,0.030757]
[1756541028482,1.2339346,108700.0,108690.0,0.030757]
[1756541028678,1.2339346,108700.0,108690.0,0.033757]
[1756541032142,1.23393471,108700.0,108690.0,0.033757]
[1756541039788,1.23393471,108700.0,108690.0,0.035917]
[1756541041631,1.23393497,108700.0,108690.0,0.035917]
[1756541045477,1.23393497,108700.0,108690.0,0.033757]
[1756541047176,1.23393497,108700.0,108690.0,0.035917]
[1756541052292,1.23393465,108700.0,108690.0,0.035917]
[1756541057651,0.22078481,108700.0,108690.0,0.035917]
[1756541057851,1.21410061,108700.0,108690.0,0.035917]
[1756541058565,1.19682248,108700.0,108690.0,0.035917]
[1756541063741,0.33795264,108700.0,108690.0,0.035917]
[1756541063990,1.19682248,108700.0,108690.0,0.035917]